fUSD/lending_fUSD_20250818
["ID","MTS","AMOUNT","RATE_DAILY","PERIOD"]
[380028137,1755483073663,-250.0,0.000137,2]
[380028138,1755483073673,-250.0,0.000137,2]
[380028139,1755483073682,-250.0,0.000137,2]
[380028140,1755483073691,-250.0,0.000137,2]
[380028141,1755483073700,-271.0,0.000137,2]
[380028142,1755483073709,-10786.07,0.000137,2]
[380028143,1755483073719,-10786.07,0.000137,2]
[380028144,1755483073728,-150.0,0.00013705,7]
[380028145,1755483073739,-150.0,0.00013705,7]
[380028146,1755483073750,-150.0,0.00013705,7]
[380028147,1755483073760,-150.0,0.00013705,7]
[380028148,1755483073771,-150.0,0.00013705,7]
[380028149,1755483073780,-150.0,0.00013705,7]
[380028150,1755483073789,-150.0,0.00013705,7]
[380028151,1755483073802,-196.15674946,0.00013705,7]
[380028152,1755483073811,-150.0,0.00013705,7]
[380028153,1755483073820,-150.0,0.00013705,7]
[380028154,1755483073830,-150.0,0.00013705,7]
[380028155,1755483073839,-150.0,0.00013705,7]
[380028156,1755483073848,-150.0,0.00013705,7]
[380028157,1755483073859,-150.0,0.00013705,7]
[380028158,1755483073869,-150.0,0.00013705,7]
[380028159,1755483073879,-260.31769425,0.00013705,7]
[380028160,1755483073889,-579.0,0.00013709,2]
[380028161,1755483073899,-918.196949,0.00013712,2]
[380028162,1755483073908,-151.0,0.00013712,2]
[380028163,1755483073918,-151.0,0.00013712,2]
[380028164,1755483073927,-151.0,0.00013712,2]
[380028165,1755483073936,-151.0,0.00013712,2]
[380028166,1755483073946,-151.385386,0.00013712,2]
[380028167,1755483073956,-173.726183,0.00013712,2]
[380028168,1755483073965,-173.726183,0.00013712,2]
[380028169,1755483073975,-151.0,0.00013712,2]
[380028170,1755483073984,-151.0,0.00013712,2]
[380028171,1755483073993,-157.956145,0.00013712,2]
[380028172,1755483074002,-157.956145,0.00013712,2]
[380028173,1755483074012,-391.525,0.00013712,2]
[380028174,1755483074021,-154.13738,0.00013712,2]
[380028175,1755483074032,-151.0,0.00013712,2]
[380028176,1755483074043,-151.0,0.00013712,2]
[380028177,1755483074054,-391.525,0.00013712,2]
[380028178,1755483074064,-151.895991,0.00013712,2]
[380028179,1755483074074,-151.0,0.00013712,2]
[380028180,1755483074084,-151.0,0.00013712,2]
[380028181,1755483074094,-283.669267,0.00013712,2]
[380028182,1755483074112,-283.669267,0.00013712,2]
[380028183,1755483074121,-151.0,0.00013712,2]
[380028184,1755483074131,-183.581501,0.00013712,2]
[380028185,1755483074142,-183.581501,0.00013712,2]
[380028186,1755483074152,-151.0,0.00013712,2]
[380028187,1755483074162,-151.0,0.00013712,2]
[380028188,1755483074171,-151.0,0.00013712,2]
[380028189,1755483074182,-152.308589,0.00013712,2]
[380028190,1755483074191,-187.645934,0.00013712,2]
[380028191,1755483074201,-151.0,0.00013712,2]
[380028192,1755483074211,-313.005,0.00013712,2]
[380028193,1755483074220,-151.0,0.00013712,2]
[380028194,1755483074229,-313.005,0.00013712,2]
[380028195,1755483074238,-151.0,0.00013712,2]
[380028196,1755483074248,-151.0,0.00013712,2]
[380028197,1755483074263,-151.0,0.00013712,2]
[380028198,1755483074272,-400.74655,0.00013712,2]
[380028199,1755483074283,-289.026422,0.00013712,2]
[380028200,1755483074292,-400.74655,0.00013712,2]
[380028201,1755483074304,-289.026422,0.00013712,2]
[380028202,1755483074314,-151.0,0.00013712,2]
[380028203,1755483074324,-151.0,0.00013712,2]
[380028204,1755483074334,-163.850508,0.00013712,2]
[380028205,1755483074345,-151.0,0.00013712,2]
[380028206,1755483074364,-268.689764,0.00013712,2]
[380028207,1755483074381,-268.689764,0.00013712,2]
[380028208,1755483074401,-151.0,0.00013712,2]
[380028209,1755483074416,-264.406278,0.00013712,2]
[380028210,1755483074429,-264.406278,0.00013712,2]
[380028211,1755483074440,-299.259259,0.00013712,2]
[380028212,1755483074452,-299.259259,0.00013712,2]
[380028213,1755483074461,-151.0,0.00013712,2]
[380028214,1755483074472,-151.212293,0.00013712,2]
[380028215,1755483074482,-151.0,0.00013712,2]
[380028216,1755483074491,-151.0,0.00013712,2]
[380028217,1755483074500,-151.0,0.00013712,2]
[380028218,1755483074509,-222.228534,0.00013712,2]
[380028219,1755483074519,-151.0,0.00013712,2]
[380028220,1755483074528,-284.605885,0.00013712,2]
[380028221,1755483074537,-151.0,0.00013712,2]
[380028222,1755483074549,-284.605885,0.00013712,2]
[380028223,1755483074558,-2117.900616,0.00013712,2]
[380028224,1755483074567,-151.0,0.00013712,2]
[380028225,1755483074577,-2117.900616,0.00013712,2]
[380028226,1755483074586,-956.229431,0.00013712,2]
[380028227,1755483074595,-956.229431,0.00013712,2]
[380028228,1755483074605,-151.0,0.00013712,2]
[380028229,1755483074614,-151.0,0.00013712,2]
[380028230,1755483074623,-279.174688,0.00013712,2]
[380028231,1755483074632,-348.44721,0.00013712,2]
[380028232,1755483074642,-279.174688,0.00013712,2]
[380028233,1755483074651,-348.44721,0.00013712,2]
[380028234,1755483074660,-151.0,0.00013712,2]
[380028235,1755483074670,-221.995809,0.00013712,2]
[380028236,1755483074680,-151.0,0.00013712,2]
[380028237,1755483074689,-221.995809,0.00013712,2]
[380028238,1755483074698,-151.0,0.00013712,2]
[380028239,1755483074707,-1012.496576,0.00013712,2]
[380028240,1755483074716,-151.0,0.00013712,2]
[380028241,1755483074725,-151.0,0.00013712,2]
[380028242,1755483074734,-1012.496576,0.00013712,2]
[380028243,1755483074743,-151.0,0.00013712,2]
[380028244,1755483074752,-522.262064,0.00013712,2]
[380028245,1755483074761,-829.752649,0.00013712,2]
[380028246,1755483074771,-872.287102,0.00013712,2]
[380028247,1755483074780,-522.262064,0.00013712,2]
[380028248,1755483074789,-872.287102,0.00013712,2]
[380028249,1755483074801,-829.752649,0.00013712,2]
[380028250,1755483074811,-186.266491,0.00013712,2]
[380028251,1755483074820,-186.266491,0.00013712,2]
[380028252,1755483074829,-151.0,0.00013712,2]
[380028253,1755483074838,-151.0,0.00013712,2]
[380028254,1755483074847,-151.0,0.00013712,2]
[380028255,1755483074856,-440.375856,0.00013712,2]
[380028256,1755483074866,-151.0,0.00013712,2]
[380028257,1755483074875,-344.703958,0.00013712,2]
[380028258,1755483074884,-440.375856,0.00013712,2]
[380028259,1755483074894,-1486.365786,0.00013712,2]
[380028260,1755483074903,-344.703958,0.00013712,2]
[380028261,1755483074913,-213.398066,0.00013712,2]
[380028262,1755483074922,-3000.0,0.00013712,2]
[380028263,1755483074932,-2015.31468129,0.00013712,2]
[380028264,1755483074941,-3000.0,0.00013712,2]
[380028265,1755483074950,-3000.0,0.00013712,2]
[380028266,1755483074959,-151.0,0.00013719,2]
[380028267,1755483074969,-151.0,0.00013719,2]
[380028268,1755483074979,-151.0,0.00013719,2]
[380028269,1755483074988,-151.0,0.00013719,2]
[380028270,1755483074997,-151.0,0.00013719,2]
[380028271,1755483075007,-151.0,0.00013719,2]
[380028272,1755483075016,-151.0,0.00013719,2]
[380028273,1755483075026,-151.0,0.00013719,2]
[380028274,1755483075035,-151.0,0.00013719,2]
[380028275,1755483075046,-359.083885,0.00013719,2]
[380028276,1755483075056,-359.083885,0.00013719,2]
[380028277,1755483075065,-563.360572,0.00013719,2]
[380028278,1755483075075,-563.360572,0.00013719,2]
[380028279,1755483075088,-151.0,0.00013719,2]
[380028280,1755483075097,-871.647704,0.00013719,2]
[380028281,1755483075107,-871.647704,0.00013719,2]
[380028282,1755483075116,-151.0,0.00013719,2]
[380028283,1755483075126,-461.1307,0.00013719,2]
[380028284,1755483075136,-151.0,0.00013719,2]
[380028285,1755483075145,-461.1307,0.00013719,2]
[380028286,1755483075155,-292.8,0.00013719,2]
[380028287,1755483075165,-513.61232,0.00013719,2]
[380028288,1755483075175,-1688.904327,0.00013719,2]
[380028289,1755483075184,-285.818622,0.00013719,2]
[380028290,1755483075194,-513.61232,0.00013719,2]
[380028291,1755483075203,-292.8,0.00013719,2]
[380028292,1755483075212,-1688.904327,0.00013719,2]
[380028293,1755483075221,-164.307955,0.00013719,2]
[380028294,1755483075231,-285.818622,0.00013719,2]
[380028295,1755483075240,-151.0,0.00013719,2]
[380028296,1755483075249,-151.0,0.00013719,2]
[380028297,1755483075258,-217.111715,0.00013719,2]
[380028298,1755483075272,-151.0,0.00013719,2]
[380028299,1755483075281,-235.75566,0.00013719,2]
[380028300,1755483075290,-151.0,0.00013719,2]
[380028301,1755483075302,-217.111715,0.00013719,2]
[380028302,1755483075311,-151.0,0.00013719,2]
[380028303,1755483075320,-151.0,0.00013719,2]
[380028304,1755483075329,-272.495076,0.00013719,2]
[380028305,1755483075339,-164.307955,0.00013719,2]
[380028306,1755483075349,-235.75566,0.00013719,2]
[380028307,1755483075358,-272.495076,0.00013719,2]
[380028308,1755483075367,-151.0,0.00013719,2]
[380028309,1755483075377,-151.0,0.00013719,2]
[380028310,1755483075386,-151.0,0.00013719,2]
[380028311,1755483075395,-151.0,0.00013719,2]
[380028312,1755483075404,-151.0,0.00013719,2]
[380028313,1755483075413,-860.460767,0.00013719,2]
[380028314,1755483075422,-860.460767,0.00013719,2]
[380028315,1755483075432,-315.204352,0.00013719,2]
[380028316,1755483075442,-315.204352,0.00013719,2]
[380028317,1755483075451,-172.64899,0.00013719,2]
[380028318,1755483075460,-151.0,0.00013719,2]
[380028319,1755483075469,-172.64899,0.00013719,2]
[380028320,1755483075478,-173.896407,0.00013719,2]
[380028321,1755483075487,-172.454679,0.00013719,2]
[380028322,1755483075496,-151.0,0.00013719,2]
[380028323,1755483075506,-251.634418,0.00013719,2]
[380028324,1755483075514,-173.896407,0.00013719,2]
[380028325,1755483075524,-172.454679,0.00013719,2]
[380028326,1755483075533,-671.498097,0.00013719,2]
[380028327,1755483075542,-671.498097,0.00013719,2]
[380028328,1755483075554,-151.0,0.00013719,2]
[380028329,1755483075563,-206.651293,0.00013719,2]
[380028330,1755483075573,-206.651293,0.00013719,2]
[380028331,1755483075582,-154.47952,0.00013719,2]
[380028332,1755483075591,-151.0,0.00013719,2]
[380028333,1755483075600,-154.47952,0.00013719,2]
[380028334,1755483075609,-401.793276,0.00013719,2]
[380028335,1755483075618,-401.793276,0.00013719,2]
[380028336,1755483075627,-163.358897,0.00013719,2]
[380028337,1755483075638,-163.358897,0.00013719,2]
[380028338,1755483075647,-196.226327,0.00013719,2]
[380028339,1755483075660,-1283.524593,0.00013719,2]
[380028340,1755483075669,-196.226327,0.00013719,2]
[380028341,1755483075678,-151.0,0.00013719,2]
[380028342,1755483075687,-151.0,0.00013719,2]
[380028343,1755483075697,-263.718579,0.00013719,2]
[380028344,1755483075706,-282.825094,0.00013719,2]
[380028345,1755483075715,-1283.524593,0.00013719,2]
[380028346,1755483075724,-151.0,0.00013719,2]
[380028347,1755483075733,-151.0,0.00013719,2]
[380028348,1755483075742,-263.718579,0.00013719,2]
[380028349,1755483075751,-151.0,0.00013719,2]
[380028350,1755483075760,-282.825094,0.00013719,2]
[380028351,1755483075769,-486.734997,0.00013719,2]
[380028352,1755483075779,-151.0,0.00013719,2]
[380028353,1755483075788,-486.734997,0.00013719,2]
[380028354,1755483075799,-770.07925,0.00013719,2]
[380028355,1755483075808,-770.07925,0.00013719,2]
[380028356,1755483075818,-151.0,0.00013719,2]
[380028357,1755483075827,-330.448748,0.00013719,2]
[380028358,1755483075835,-330.448748,0.00013719,2]
[380028359,1755483075844,-151.0,0.00013719,2]
[380028360,1755483075853,-1111.25486,0.00013719,2]
[380028361,1755483075863,-1111.25486,0.00013719,2]
[380028362,1755483075872,-151.0,0.00013719,2]
[380028363,1755483075882,-151.0,0.00013719,2]
[380028364,1755483075892,-540.049527,0.00013719,2]
[380028365,1755483075901,-724.795959,0.00013719,2]
[380028366,1755483075911,-508.648757,0.00013719,2]
[380028367,1755483075920,-540.049527,0.00013719,2]
[380028368,1755483075930,-2648.525714,0.00013719,2]
[380028369,1755483075939,-724.795959,0.00013719,2]
[380028370,1755483075949,-508.648757,0.00013719,2]
[380028371,1755483075959,-2648.525714,0.00013719,2]
[380028372,1755483075968,-209.671152,0.00013719,2]
[380028373,1755483075977,-191.270768,0.00013719,2]
[380028374,1755483075986,-244.111452,0.00013719,2]
[380028375,1755483075995,-209.671152,0.00013719,2]
[380028376,1755483076005,-244.111452,0.00013719,2]
[380028377,1755483076014,-3831.253063,0.00013719,2]
[380028378,1755483076024,-2634.280718,0.00013719,2]
[380028379,1755483076035,-207.631449,0.00013719,2]
[380028380,1755483076044,-3831.253063,0.00013719,2]
[380028381,1755483076055,-207.631449,0.00013719,2]
[380028382,1755483076064,-191.270768,0.00013719,2]
[380028383,1755483076074,-2634.280718,0.00013719,2]
[380028384,1755483076084,-151.0,0.00013719,2]
[380028385,1755483076112,-446.878187,0.00013719,2]
[380028386,1755483076128,-151.0,0.00013719,2]
[380028387,1755483076137,-1208.729992,0.00013719,2]
[380028388,1755483076146,-151.0,0.00013719,2]
[380028389,1755483076155,-446.878187,0.00013719,2]
[380028390,1755483076164,-211.374547,0.00013719,2]
[380028391,1755483076174,-1208.729992,0.00013719,2]
[380028392,1755483076183,-211.374547,0.00013719,2]
[380028393,1755483076192,-254.208108,0.00013719,2]
[380028394,1755483076201,-151.0,0.00013719,2]
[380028395,1755483076210,-254.208108,0.00013719,2]
[380028396,1755483076220,-151.0,0.00013719,2]
[380028397,1755483076229,-2315.452516,0.00013719,2]
[380028398,1755483076239,-2315.452516,0.00013719,2]
[380028399,1755483076249,-151.0,0.00013719,2]
[380028400,1755483076258,-151.0,0.00013719,2]
[380028401,1755483076270,-151.0,0.00013719,2]
[380028402,1755483076279,-151.0,0.00013719,2]
[380028403,1755483076287,-151.0,0.00013719,2]
[380028404,1755483076296,-151.0,0.00013719,2]
[380028405,1755483076312,-151.0,0.00013719,2]
[380028406,1755483076323,-340.047892,0.00013719,2]
[380028407,1755483076333,-900.653985,0.00013719,2]
[380028408,1755483076343,-151.0,0.00013719,2]
[380028409,1755483076353,-151.0,0.00013719,2]
[380028410,1755483076364,-340.047892,0.00013719,2]
[380028411,1755483076373,-900.653985,0.00013719,2]
[380028412,1755483076382,-151.0,0.00013719,2]
[380028413,1755483076391,-151.0,0.00013719,2]
[380028414,1755483076400,-151.0,0.00013719,2]
[380028415,1755483076408,-2654.028157,0.00013719,2]
[380028416,1755483076417,-151.0,0.00013719,2]
[380028417,1755483076427,-2654.028157,0.00013719,2]
[380028418,1755483076436,-344.732883,0.00013719,2]
[380028419,1755483076445,-151.0,0.00013719,2]
[380028420,1755483076453,-344.732883,0.00013719,2]
[380028421,1755483076463,-2249.145366,0.00013719,2]
[380028422,1755483076474,-2249.145366,0.00013719,2]
[380028423,1755483076483,-207.815541,0.00013719,2]
[380028424,1755483076492,-207.815541,0.00013719,2]
[380028425,1755483076501,-1681.446527,0.00013719,2]
[380028426,1755483076510,-152.802311,0.00013719,2]
[380028427,1755483076523,-549.777137,0.00013719,2]
[380028428,1755483076532,-1681.446527,0.00013719,2]
[380028429,1755483076541,-549.777137,0.00013719,2]
[380028430,1755483076553,-151.0,0.00013719,2]
[380028431,1755483076562,-151.0,0.00013719,2]
[380028432,1755483076571,-151.0,0.00013719,2]
[380028433,1755483076580,-823.976552,0.00013719,2]
[380028434,1755483076589,-151.0,0.00013719,2]
[380028435,1755483076599,-151.0,0.00013719,2]
[380028436,1755483076609,-823.976552,0.00013719,2]
[380028437,1755483076618,-293.559044,0.00013719,2]
[380028438,1755483076627,-1154.09219,0.00013719,2]
[380028439,1755483076636,-293.559044,0.00013719,2]
[380028440,1755483076645,-1154.09219,0.00013719,2]
[380028441,1755483076654,-151.0,0.00013719,2]
[380028442,1755483076663,-1011.236887,0.00013719,2]
[380028443,1755483076672,-151.0,0.00013719,2]
[380028444,1755483076681,-151.0,0.00013719,2]
[380028445,1755483076690,-1011.236887,0.00013719,2]
[380028446,1755483076699,-151.0,0.00013719,2]
[380028447,1755483076708,-151.0,0.00013719,2]
[380028448,1755483076717,-900.72027,0.00013719,2]
[380028449,1755483076726,-198.358269,0.00013719,2]
[380028450,1755483076735,-900.72027,0.00013719,2]
[380028451,1755483076744,-374.106493,0.00013719,2]
[380028452,1755483076753,-198.358269,0.00013719,2]
[380028453,1755483076762,-374.106493,0.00013719,2]
[380028454,1755483076770,-151.0,0.00013719,2]
[380028455,1755483076780,-166.977056,0.00013719,2]
[380028456,1755483076789,-151.0,0.00013719,2]
[380028457,1755483076801,-313.510497,0.00013719,2]
[380028458,1755483076811,-166.977056,0.00013719,2]
[380028459,1755483076820,-151.0,0.00013719,2]
[380028460,1755483076829,-151.0,0.00013719,2]
[380028461,1755483076838,-313.510497,0.00013719,2]
[380028462,1755483076847,-151.0,0.00013719,2]
[380028463,1755483076856,-507.123614,0.00013719,2]
[380028464,1755483076865,-487.75,0.00013719,2]
[380028465,1755483076874,-760.129566,0.00013719,2]
[380028466,1755483076883,-151.0,0.00013719,2]
[380028467,1755483076892,-151.83878,0.00013719,2]
[380028468,1755483076904,-507.123614,0.00013719,2]
[380028469,1755483076920,-432.094565,0.00013719,2]
[380028470,1755483076934,-760.129566,0.00013719,2]
[380028471,1755483076947,-487.75,0.00013719,2]
[380028472,1755483076961,-151.0,0.00013719,2]
[380028473,1755483076974,-151.0,0.00013719,2]
[380028474,1755483076989,-151.0,0.00013719,2]
[380028475,1755483077002,-432.094565,0.00013719,2]
[380028476,1755483077015,-151.0,0.00013719,2]
[380028477,1755483077026,-275.954601,0.00013719,2]
[380028478,1755483077040,-262.416408,0.00013719,2]
[380028479,1755483077056,-275.954601,0.00013719,2]
[380028480,1755483077071,-151.0,0.00013719,2]
[380028481,1755483077086,-262.416408,0.00013719,2]
[380028482,1755483077101,-559.403226,0.00013719,2]
[380028483,1755483077115,-803.212668,0.00013719,2]
[380028484,1755483077130,-2790.781304,0.00013719,2]
[380028485,1755483077144,-559.403226,0.00013719,2]
[380028486,1755483077159,-803.212668,0.00013719,2]
[380028487,1755483077173,-2790.781304,0.00013719,2]
[380028488,1755483077187,-151.0,0.00013719,2]
[380028489,1755483077205,-154.024208,0.00013719,2]
[380028490,1755483077219,-154.024208,0.00013719,2]
[380028491,1755483077234,-151.0,0.00013719,2]
[380028492,1755483077246,-151.0,0.00013719,2]
[380028493,1755483077259,-151.0,0.00013719,2]
[380028494,1755483077278,-151.0,0.00013719,2]
[380028495,1755483077290,-151.0,0.00013719,2]
[380028496,1755483077303,-227.544988,0.00013719,2]
[380028497,1755483077314,-514.880055,0.00013719,2]
[380028498,1755483077327,-227.544988,0.00013719,2]
[380028499,1755483077344,-514.880055,0.00013719,2]
[380028500,1755483077356,-1914.403554,0.00013719,2]
[380028501,1755483077367,-163.924919,0.00013719,2]
[380028502,1755483077386,-1914.403554,0.00013719,2]
[380028503,1755483077404,-151.0,0.00013719,2]
[380028504,1755483077422,-12000.0,0.00013719,2]
[380028505,1755483077435,-163.924919,0.00013719,2]
[380028506,1755483077449,-151.0,0.00013719,2]
[380028507,1755483077463,-12000.0,0.00013719,2]
[380028508,1755483077478,-668.727183,0.00013719,2]
[380028509,1755483077492,-12000.0,0.00013719,2]
[380028510,1755483077507,-579.0,0.0001372,2]
[380028511,1755483077521,-579.0,0.0001373,2]
[380028512,1755483077535,-579.0,0.00013734,2]
[380028513,1755483077550,-300.0,0.00013739,4]
[380028514,1755483077565,-1160.24,0.00013739,2]
[380028515,1755483077578,-151.258236,0.00013746,2]
[380028516,1755483077592,-151.0,0.00013746,2]
[380028517,1755483077605,-151.0,0.00013746,2]
[380028518,1755483077618,-255.382658,0.00013746,2]
[380028519,1755483077631,-556.229222,0.00013746,2]
[380028520,1755483077644,-151.0,0.00013746,2]
[380028521,1755483077656,-255.382658,0.00013746,2]
[380028522,1755483077670,-151.0,0.00013746,2]
[380028523,1755483077682,-556.229222,0.00013746,2]
[380028524,1755483077695,-151.0,0.00013746,2]
[380028525,1755483077707,-449.920337,0.00013746,2]
[380028526,1755483077720,-369.622856,0.00013746,2]
[380028527,1755483077733,-449.920337,0.00013746,2]
[380028528,1755483077746,-494.609234,0.00013746,2]
[380028529,1755483077759,-494.609234,0.00013746,2]
[380028530,1755483077772,-252.415916,0.00013746,2]
[380028531,1755483077785,-250.511343,0.00013746,2]
[380028532,1755483077800,-252.415916,0.00013746,2]
[380028533,1755483077813,-369.622856,0.00013746,2]
[380028534,1755483077826,-250.511343,0.00013746,2]
[380028535,1755483077839,-227.616079,0.00013746,2]
[380028536,1755483077852,-227.616079,0.00013746,2]
[380028537,1755483077863,-151.0,0.00013746,2]
[380028538,1755483077876,-151.0,0.00013746,2]
[380028539,1755483077889,-151.038899,0.00013746,2]
[380028540,1755483077901,-635.217721,0.00013746,2]
[380028541,1755483077914,-159.803931,0.00013746,2]
[380028542,1755483077927,-635.217721,0.00013746,2]
[380028543,1755483077939,-469.832189,0.00013746,2]
[380028544,1755483077952,-469.832189,0.00013746,2]
[380028545,1755483077965,-3071.862168,0.00013746,2]
[380028546,1755483077979,-3071.862168,0.00013746,2]
[380028547,1755483077991,-3704.0,0.00013746,2]
[380028548,1755483078004,-1047.81838246,0.00013749,2]
[380028549,1755483078016,-150.0,0.0001375,2]
[380028550,1755483078029,-1612.0,0.00013759,2]
[380028551,1755483078042,-670.84804146,0.00013771,2]
[380028552,1755483078059,-1000.0,0.00013777,2]
[380028553,1755483078072,-150.77925533,0.00013779,2]
[380028554,1755483078085,-456.45727036,0.00013786,2]
[380028555,1755483078099,-150.0,0.00013791,2]
[380028556,1755483078111,-27574.45070559,0.000138,2]
[380028557,1755483078124,-1000.0,0.000138,2]
[380028558,1755483078141,-800.0,0.000138,5]
[380028559,1755483078153,-150.0,0.00013801,2]
[380028560,1755483078166,-1612.0,0.00013813,2]
[380028561,1755483078178,-292.1143134,0.00013848,2]
[380028562,1755483078191,-150.0,0.00013862,2]
[380028563,1755483078203,-1000.0,0.0001387,2]
[380028564,1755483078217,-1000.0,0.0001387,2]
[380028565,1755483078229,-500.20502929,0.0001387,2]
[380028566,1755483078241,-500.0,0.0001387,2]
[380028567,1755483078254,-150.0,0.00013872,2]
[380028568,1755483078269,-622.8847527,0.00013872,2]
[380028569,1755483078281,-150.0,0.00013875,2]
[380028570,1755483078294,-371.13987262,0.00013886,2]
[380028571,1755483078309,-1000.0,0.00013899,2]
[380028572,1755483078322,-1000.0,0.000139,2]
[380028573,1755483078335,-800.0,0.000139,5]
[380028574,1755483078347,-150.0,0.00013904,2]
[380028575,1755483078359,-1130.07,0.00013909,2]
[380028576,1755483078372,-759.0,0.00013914,2]
[380028577,1755483078384,-471.0,0.00013914,2]
[380028578,1755483078397,-3948.0,0.00013914,2]
[380028579,1755483078409,-334.0385367,0.00013914,2]
[380028580,1755483078421,-500.0,0.00013914,2]
[380028581,1755483078434,-575.0,0.00013914,2]
[380028582,1755483078445,-150.0,0.00013928,2]
[380028583,1755483078457,-150.0,0.0001393,2]
[380028584,1755483078481,-5000.0,0.00013935,2]
[380028585,1755483078494,-151.0,0.00013936,2]
[380028586,1755483078506,-151.0,0.00013936,2]
[380028587,1755483078519,-500.0,0.00013945,2]
[380028588,1755483078531,-1612.0,0.00013955,2]
[380028589,1755483078544,-500.0,0.00013963,2]
[380028590,1755483078559,-500.0,0.00013963,2]
[380028591,1755483078572,-500.0,0.00013963,2]
[380028592,1755483078583,-526.0,0.00013963,2]
[380028593,1755483078596,-500.0,0.00013963,2]
[380028594,1755483078608,-500.0,0.00013963,2]
[380028595,1755483078620,-500.0,0.00013963,2]
[380028596,1755483078632,-500.0,0.00013963,2]
[380028597,1755483078645,-500.0,0.00013963,2]
[380028598,1755483078658,-500.0,0.00013963,2]
[380028599,1755483078670,-500.0,0.00013963,2]
[380028600,1755483078683,-500.0,0.00013963,2]
[380028601,1755483078697,-500.0,0.00013963,2]
[380028602,1755483078709,-500.0,0.00013963,2]
[380028603,1755483078722,-500.0,0.00013963,2]
[380028604,1755483078734,-500.0,0.00013963,2]
[380028605,1755483078746,-516.0,0.00013963,2]
[380028606,1755483078760,-150.0,0.00013965,2]
[380028607,1755483078774,-500.0,0.0001397,2]
[380028608,1755483078785,-1000.0,0.0001397,2]
[380028609,1755483078799,-150.0,0.00013971,2]
[380028610,1755483078811,-150.0,0.00013971,2]
[380028611,1755483078824,-150.0,0.00013971,2]
[380028612,1755483078836,-150.0,0.00013971,2]
[380028613,1755483078848,-150.0,0.00013971,2]
[380028614,1755483078860,-158.75385276,0.00013971,2]
[380028615,1755483078873,-666.0,0.00013971,2]
[380028616,1755483078885,-666.0,0.00013971,2]
[380028617,1755483078898,-666.0,0.00013971,2]
[380028618,1755483078910,-666.0,0.00013971,2]
[380028619,1755483078922,-3349797.71423722,0.00013972,2]
[380028620,1755483082068,-211.52080512,0.00012551,2]
[380028621,1755483082078,-500.0,0.00013698,2]
[380028622,1755483082087,-1232.47,0.00013698,2]
[380028623,1755483082096,-235.75919488,0.00013698,2]
[380028624,1755483082449,-0.001154,0.00013698,2]
[380028625,1755483082461,-264.23965112,0.00013698,2]
[380028626,1755483082470,-172.63852117,0.00013698,2]
[380028627,1755483082695,-21495.0,0.00012136,2]
[380028628,1755483082704,-327.36147883,0.00013698,2]
[380028629,1755483082714,-500.0,0.00013698,2]
[380028630,1755483082722,-400.0,0.00013698,2]
[380028631,1755483082731,-500.0,0.00013698,2]
[380028632,1755483082740,-156.980549,0.00013698,2]
[380028633,1755483082750,-500.0,0.00013698,2]
[380028634,1755483082759,-400.0,0.00013698,2]
[380028635,1755483082768,-1041.75,0.00013698,2]
[380028636,1755483082778,-500.0,0.00013698,2]